bitfinex/quotes_ETHUSD_20230117
["timestamp","ask_amount","ask_price","bid_price","bid_amount"]
[1673978384040,43.57829449,1580.9,1580.8,3.212e-05]
[1673978384627,45.95555088,1580.9,1580.8,3.212e-05]
[1673978384839,44.05276004,1580.9,1580.8,3.212e-05]
[1673978385053,26.67574788,1580.8,1580.2,0.0053696]
[1673978385299,18.98373,1580.3,1580.2,0.0053696]
[1673978385491,19.04973,1580.3,1580.2,0.0053696]
[1673978387628,20.72373,1580.3,1580.2,0.0053696]
[1673978387852,21.19843,1580.3,1580.2,0.0053696]
[1673978388219,24.31505407,1580.3,1580.2,0.0053696]
[1673978388551,31.25025216,1580.3,1580.2,0.0053696]
[1673978388747,31.27414358,1580.3,1580.2,0.0053696]
[1673978389169,32.94531956,1580.3,1580.2,0.0053696]
[1673978389490,34.39231956,1580.3,1580.2,0.0053696]
[1673978389836,34.39231956,1580.3,1580.2,0.00278186]
[1673978389997,32.78031956,1580.3,1580.2,0.00278186]
[1673978390208,32.78031956,1580.3,1580.0,0.01052781]
[1673978390419,1.279,1580.1,1580.0,0.01052781]
[1673978390660,29.73435549,1580.1,1580.0,0.01052781]
[1673978390848,33.50515549,1580.1,1580.0,0.01052781]
[1673978392105,33.03035549,1580.1,1580.0,0.01052781]
[1673978393160,29.91373142,1580.1,1580.0,0.01052781]
[1673978393377,28.38084,1580.1,1580.0,0.01052781]
[1673978393732,33.07874194,1580.1,1580.0,0.01052781]
[1673978394983,34.35774194,1580.1,1580.0,0.01052781]
[1673978396115,34.58774194,1580.1,1580.0,0.01052781]
[1673978396342,34.35774194,1580.1,1580.0,0.01052781]
[1673978396505,33.07874194,1580.1,1580.0,0.01052781]
[1673978399698,36.42536601,1580.1,1580.0,0.00818235]
[1673978399922,25.31804,1579.9,1579.7,0.02190558]
[1673978400120,22.36024549,1579.8,1579.7,0.02190558]
[1673978400297,25.90114549,1579.8,1579.7,0.02190558]
[1673978402011,25.42624549,1579.8,1579.7,0.02190558]
[1673978402429,22.30962142,1579.8,1579.7,0.02190558]
[1673978402598,25.85634885,1579.8,1579.7,0.02190558]
[1673978403706,22.83245743,1579.8,1579.7,0.95590558]
[1673978403935,19.05573,1579.8,1579.7,0.95590558]
[1673978404068,12.72582,1579.8,1579.7,0.95590558]
[1673978404280,12.72582,1579.8,1579.7,1.51406519]
[1673978404878,12.72582,1579.8,1579.7,0.58006519]
[1673978405184,20.96165729,1579.8,1579.7,0.58006519]
[1673978407386,19.05573,1579.8,1579.7,0.58006519]
[1673978407602,0.066,1579.8,1579.7,3.69668926]
[1673978407811,0.00394291,1579.9,1579.7,22.68761926]
[1673978408028,0.00394291,1579.9,1579.8,9.44653407]
[1673978408176,0.00394291,1579.9,1579.8,9.51253407]
[1673978408388,0.00394291,1579.9,1579.8,11.787856]
[1673978408913,0.00394291,1579.9,1579.8,13.066856]
[1673978409812,0.00394291,1579.9,1579.8,6.736946]
[1673978410117,0.00394291,1579.9,1579.8,4.46162407]
[1673978410338,0.00394291,1579.9,1579.8,4.39562407]
[1673978410736,0.00394291,1579.9,1579.8,17.05544407]
[1673978410931,0.00394291,1579.9,1579.8,17.12144407]
[1673978412143,0.00394291,1579.9,1579.8,11.79153407]
[1673978412306,0.00394291,1579.9,1579.8,19.991606]
[1673978412997,0.00394291,1579.9,1579.8,18.991606]
[1673978414417,0.00394291,1579.9,1579.8,20.267606]
[1673978414880,0.00394291,1579.9,1579.8,26.597516]
[1673978415204,0.00394291,1579.9,1579.8,30.46425773]
[1673978415832,0.5407,1580.5,1579.9,1.00758462]
[1673978416041,8.21916038,1580.6,1580.2,1.279]
[1673978416267,8.10141034,1580.6,1580.3,3.11662407]
[1673978416412,7.62681034,1580.6,1580.3,3.11662407]
[1673978417146,0.94285606,1580.5,1580.3,3.11662407]
[1673978417353,0.94285606,1580.5,1580.2,1.345]
[1673978417354,13.59710606,1580.5,1580.2,1.345]
[1673978417564,13.59710606,1580.5,1580.2,4.39562407]
[1673978417565,15.83225212,1580.5,1580.2,4.39562407]
[1673978418262,13.66310606,1580.5,1580.2,4.39562407]
[1673978418404,7.33596606,1580.5,1580.2,4.39562407]
[1673978418623,7.33596606,1580.5,1580.2,10.72389407]
[1673978418834,1.34477638,1580.6,1580.4,3.11662407]
[1673978419046,4.50713744,1580.7,1580.5,3.11662407]
[1673978419047,0.33793671,1580.7,1580.5,3.11662407]
[1673978419297,0.22278538,1580.9,1580.7,1.33207076]
[1673978419695,0.22278538,1580.9,1580.8,3.34662407]
[1673978420036,0.22278538,1580.9,1580.8,3.11662407]
[1673978420244,0.22278538,1580.9,1580.7,1.39807076]
[1673978420408,0.22278538,1580.9,1580.7,1.33207076]
[1673978420409,1.28409283,1580.9,1580.7,1.33207076]
[1673978420614,7.63349425,1580.9,1580.7,1.33207076]
[1673978420828,7.69949425,1580.9,1580.7,1.33207076]
[1673978421068,7.69949425,1580.9,1580.3,1.345]
[1673978421283,7.69949425,1580.9,1580.1,0.066]
[1673978421284,1.41917174,1580.8,1580.1,0.066]
[1673978421454,0.94457174,1580.6,1579.9,0.00758462]
[1673978421663,1.271,1580.5,1579.9,0.00758462]
[1673978421911,6.32781,1580.4,1579.9,0.00758462]
[1673978422082,6.39381,1580.4,1579.9,0.00758462]
[1673978422292,0.4747,1580.3,1580.0,4.39562407]
[1673978422621,1.4747,1580.3,1580.1,3.11662407]
[1673978422832,1.4747,1580.3,1580.0,2.41825987]
[1673978422833,0.4747,1580.3,1580.0,2.41825987]
[1673978423166,6.32797,1580.3,1579.9,0.00758462]
[1673978423378,6.39397,1580.3,1579.9,3.12420869]
[1673978423913,0.066,1580.3,1579.9,3.12420869]
[1673978424125,7.80252,1580.4,1579.9,3.12420869]
[1673978424126,7.81309174,1580.4,1579.9,3.12420869]
[1673978424429,6.86852,1580.4,1579.9,3.12420869]
[1673978424621,6.86852,1580.4,1580.0,3.42904494]
[1673978424622,0.5407,1580.4,1580.0,3.42904494]
[1673978424834,0.4747,1580.4,1580.0,3.42904494]
[1673978425045,10.33745174,1580.6,1580.0,3.42904494]
[1673978425046,0.49859142,1580.5,1580.0,3.42904494]
[1673978425441,1.44316316,1580.5,1580.0,3.42904494]
[1673978425652,3.25947048,1580.5,1580.1,3.11662407]
[1673978425862,2.31489874,1580.5,1580.2,3.11662407]
[1673978426106,1.84019874,1580.5,1580.2,3.11662407]
[1673978426335,0.96846316,1580.5,1580.2,3.11662407]
[1673978426494,0.02589142,1580.5,1580.2,3.11662407]
[1673978426706,0.02389142,1580.5,1580.2,3.11662407]
[1673978427016,0.49859142,1580.5,1580.2,3.11662407]
[1673978427263,0.49859142,1580.5,1580.1,1.345]
[1673978427619,16.18103248,1580.5,1580.0,0.066]
[1673978427913,15.24703248,1580.5,1580.0,3.11662407]
[1673978428282,15.24703248,1580.5,1579.9,0.07358462]
[1673978428529,0.94457174,1580.4,1579.9,0.00758462]
[1673978428740,1.03902891,1580.3,1579.9,0.00758462]
[1673978428935,12.65678,1580.2,1579.9,0.00758462]
[1673978429119,12.72278,1580.2,1579.9,0.00758462]
[1673978429857,13.66735174,1580.2,1579.9,0.00758462]
[1673978430067,2.7458,1580.1,1579.9,0.00758462]
[1673978430274,6.60369,1580.0,1579.9,0.00758462]
[1673978430486,19.32791,1580.0,1579.9,0.00758462]
[1673978431343,19.80271,1580.0,1579.9,0.00758462]
[1673978431598,21.07871,1580.0,1579.9,0.00758462]
[1673978431760,24.07871,1580.0,1579.9,0.00758462]
[1673978432489,24.10260142,1580.0,1579.9,0.00758462]
[1673978432907,25.04717316,1580.0,1579.9,0.00758462]
[1673978433163,29.5800368,1580.0,1579.9,0.00758462]
[1673978434483,28.63546506,1580.0,1579.9,0.00758462]
[1673978436959,23.74701714,1580.0,1579.9,0.00758462]
[1673978439263,20.27221714,1580.0,1579.9,0.00758462]
[1673978439578,19.05333,1580.0,1579.9,0.00758462]
[1673978440275,0.066,1580.0,1579.9,0.00758462]
[1673978440486,16.0562,1580.1,1579.9,4.05820869]
[1673978440487,0.066,1580.1,1579.9,4.05820869]
[1673978440696,19.61337957,1580.3,1579.9,11.66671869]
[1673978440697,24.59128,1580.3,1579.9,11.66671869]
[1673978441031,24.59128,1580.3,1579.9,5.40320869]
[1673978441201,24.59128,1580.3,1579.9,7.20946056]
[1673978441412,24.59128,1580.3,1579.9,7.21400842]
[1673978443493,30.91948,1580.3,1579.9,5.93500842]
[1673978443800,31.86378714,1580.3,1579.9,5.93500842]
[1673978444330,0.02389142,1580.2,1579.9,0.07358462]
[1673978444491,18.98613,1580.1,1579.9,0.00758462]
[1673978444705,19.99643714,1580.1,1579.9,0.00758462]
[1673978444932,2.02353513,1580.0,1579.9,0.00758462]
[1673978445154,21.01086513,1580.0,1579.9,0.00758462]
[1673978445372,21.07686513,1580.0,1579.9,0.00358847]
[1673978445543,0.066,1580.0,1579.9,0.00358847]
[1673978445755,6.32911,1580.0,1579.9,0.00358847]
[1673978445970,6.39511,1580.0,1579.9,0.00358847]
[1673978447447,19.05333,1580.0,1579.9,0.00358847]
[1673978449800,0.066,1580.0,1579.9,0.93758847]
[1673978450019,12.72366,1580.1,1579.9,0.93758847]
[1673978450167,0.066,1580.1,1579.9,0.00358847]
[1673978450370,7.27278714,1580.2,1579.9,0.00358847]
[1673978450629,13.66742714,1580.2,1579.9,0.00358847]
[1673978450840,6.32873,1580.1,1579.9,0.00358847]
[1673978451059,6.39473,1580.1,1579.9,0.00358847]
[1673978452016,12.72346,1580.1,1579.9,0.00358847]
[1673978452892,19.05219,1580.1,1579.9,0.00358847]
[1673978453109,1.905219,1580.0,1579.9,0.00358847]
[1673978453336,14.563439,1580.0,1579.9,0.00358847]
[1673978453549,14.629439,1580.0,1579.9,0.00358847]
[1673978454279,20.958549,1580.0,1579.9,0.00358847]
[1673978454927,21.433349,1580.0,1579.9,0.00358847]
[1673978455664,24.433349,1580.0,1579.9,0.00358847]
[1673978456924,25.37765614,1580.0,1579.9,0.00358847]
[1673978457337,29.91051978,1580.0,1579.9,0.00358847]
[1673978458863,28.96621264,1580.0,1579.9,0.00358847]
[1673978459420,1.0,1579.9,1579.7,0.58006519]
[1673978459629,26.32764,1579.8,1579.7,0.58006519]
[1673978459839,26.39364,1579.8,1579.7,0.58006519]
[1673978461259,27.36274266,1579.8,1579.7,0.58006519]
[1673978461474,33.95039506,1579.8,1579.7,0.58006519]
[1673978462833,35.83092872,1579.8,1579.7,0.58006519]
[1673978463206,34.41468915,1579.8,1579.7,0.58006519]
[1673978463789,35.83391295,1579.8,1579.7,0.58006519]
[1673978464281,34.41468915,1579.8,1579.7,0.58006519]
[1673978464471,35.8339175,1579.8,1579.7,0.58006519]
[1673978464953,34.64468915,1579.8,1579.7,6.519e-05]
[1673978465180,47.18495622,1579.8,1579.7,6.519e-05]
[1673978465394,44.83428915,1579.8,1579.7,6.519e-05]
[1673978466201,51.53228915,1579.8,1579.7,6.519e-05]
[1673978466411,52.00242256,1579.8,1579.7,6.519e-05]
[1673978467600,52.01820073,1579.8,1579.7,6.519e-05]
[1673978468000,1.0,1579.7,1579.4,0.0115114]
[1673978468344,0.94659501,1579.5,1579.4,0.0115114]
[1673978468556,0.94659501,1579.5,1579.4,1.4e-06]
[1673978468557,10.04308253,1579.5,1579.4,1.4e-06]
[1673978468883,10.04308253,1579.5,1579.2,0.01326687]
[1673978468884,1.0109986,1579.4,1579.2,0.01326687]
[1673978469043,30.81003932,1579.3,1579.2,0.01326687]
[1673978469244,37.64490513,1579.3,1579.2,0.01326687]
[1673978469594,1.0,1579.2,1579.1,0.01162832]
[1673978469770,16.65932407,1579.2,1579.1,0.01162832]
[1673978469992,35.72228407,1579.2,1579.1,0.01162832]
[1673978470190,36.89764685,1579.2,1579.1,0.01162832]
[1673978470400,43.04242663,1579.2,1579.1,0.01162832]
[1673978470623,43.04242663,1579.2,1579.1,0.00062832]
[1673978470869,43.04242663,1579.2,1578.9,0.01394207]
[1673978470870,1.0,1579.1,1578.9,0.01394207]
[1673978471044,28.44910407,1579.0,1578.9,0.01394207]
[1673978471252,28.51510407,1579.0,1578.9,0.01394207]
[1673978471558,35.67537448,1579.0,1578.9,0.01394207]
[1673978471884,36.1743659,1579.0,1578.9,0.01394207]
[1673978472307,35.6992659,1579.0,1578.9,0.01394207]
[1673978472752,36.56600763,1579.0,1578.9,0.01394207]
[1673978472922,1.0,1578.9,1578.6,0.01507432]
[1673978473131,28.47619549,1578.8,1578.6,0.01507432]
[1673978473398,28.54219549,1578.8,1578.6,0.01507432]
[1673978473567,25.42557142,1578.8,1578.6,0.01507432]
[1673978473789,25.40168,1578.8,1578.6,0.01507432]
[1673978474339,29.43204106,1578.8,1578.6,0.01507432]
[1673978475178,25.40168,1578.8,1578.6,0.01507432]
[1673978476298,19.06776,1578.8,1578.6,0.01507432]
[1673978477959,22.18438407,1578.8,1578.6,0.01507432]
[1673978478405,12.1541,1578.7,1578.6,0.01507432]
[1673978478597,31.22306,1578.7,1578.6,0.01507432]
[1673978478821,35.29042041,1578.7,1578.6,0.01507432]
[1673978481297,31.22306,1578.7,1578.6,0.01507432]
[1673978484116,31.24695142,1578.7,1578.6,0.01507432]
[1673978487588,31.22306,1578.7,1578.6,0.01507432]
[1673978489743,34.22306,1578.7,1578.6,0.01507432]
[1673978491373,37.83877549,1578.7,1578.6,0.01507432]
[1673978491620,42.25604504,1578.7,1578.6,0.01507432]
[1673978491841,42.25604504,1578.7,1578.6,7.432e-05]
[1673978491842,45.75604504,1578.7,1578.6,7.432e-05]
[1673978492055,45.75604504,1578.7,1578.2,0.01963962]
[1673978492056,1.0,1578.6,1578.2,0.01963962]
[1673978492283,25.3408,1578.5,1578.2,0.01963962]
[1673978492574,19.00779,1578.3,1578.2,0.01963962]
[1673978492794,19.07379,1578.3,1578.2,0.01963962]
[1673978493277,12.76175142,1578.3,1578.2,0.01963962]
[1673978493953,19.07379,1578.3,1578.2,0.01963962]
[1673978494153,12.73786,1578.3,1578.2,0.01963962]
[1673978494367,15.162738,1578.3,1578.2,0.01963962]
[1673978494523,21.498668,1578.3,1578.2,0.01963962]
[1673978495506,33.575268,1578.3,1578.2,0.01963962]
[1673978496155,37.050568,1578.3,1578.2,0.01963962]
[1673978496379,40.16719207,1578.3,1578.2,0.01963962]
[1673978497055,39.69189207,1578.3,1578.2,0.01963962]
[1673978497262,36.575268,1578.3,1578.2,0.01963962]
[1673978497730,24.81446,1578.3,1578.2,0.01963962]
[1673978497911,31.15039,1578.3,1578.2,0.01963962]
[1673978499782,24.81446,1578.3,1578.2,0.01963962]
[1673978500210,0.066,1578.3,1578.2,0.95363962]
[1673978500464,12.67148,1578.4,1578.2,0.01963962]
[1673978500465,12.73748,1578.4,1578.2,0.01963962]
[1673978501070,6.40171,1578.4,1578.2,0.01963962]
[1673978501267,0.066,1578.4,1578.2,0.12373298]
[1673978501479,6.4012,1578.5,1578.2,0.12373298]
[1673978501937,6.4012,1578.5,1578.2,6.46004298]
[1673978502116,6.4012,1578.5,1578.2,0.18973298]
[1673978502308,6.4012,1578.5,1578.2,0.12373298]
[1673978502524,12.73648,1578.5,1578.2,0.12373298]
[1673978503472,12.73648,1578.5,1578.3,0.45619344]
[1673978504308,19.07176,1578.5,1578.3,0.45619344]
[1673978505251,22.750259,1578.5,1578.3,0.45619344]
[1673978510536,19.07176,1578.5,1578.3,0.45619344]
[1673978512064,19.07176,1578.5,1578.3,0.45418388]
[1673978512749,0.066,1578.5,1578.3,0.45418388]
[1673978512955,0.066,1578.6,1578.3,4.57080795]
[1673978513185,6.33439,1578.7,1578.4,9.45199407]
[1673978513374,6.33439,1578.7,1578.4,11.87577087]
[1673978513375,6.40039,1578.7,1578.4,11.87577087]
[1673978513585,6.40039,1578.7,1578.4,12.33059354]
[1673978514432,12.73471,1578.7,1578.4,5.99522354]
[1673978514635,12.73471,1578.7,1578.4,3.63744674]
[1673978514902,12.73471,1578.7,1578.4,3.57144674]
[1673978515422,19.0691,1578.7,1578.4,3.57144674]
[1673978515951,19.06662397,1578.7,1578.4,3.57144674]
[1673978516975,19.06662397,1578.7,1578.4,0.45482267]
[1673978517381,21.84318016,1578.7,1578.4,0.45482267]
[1673978517665,23.26374294,1578.7,1578.4,0.45482267]
[1673978517957,23.28763436,1578.7,1578.4,0.45482267]
[1673978518108,22.81243436,1578.7,1578.4,0.45482267]
[1673978521040,24.23189951,1578.7,1578.4,0.45482267]
[1673978521305,2.42318995,1578.6,1578.4,0.45482267]
[1673978521519,19.00536,1578.5,1578.4,0.45482267]
[1673978521732,19.07136,1578.5,1578.4,0.45482267]
[1673978522852,15.17136,1578.5,1578.4,0.45482267]
[1673978527693,2.50112,1578.5,1578.4,0.45482267]
[1673978527848,2.43512,1578.5,1578.4,0.45482267]
[1673978528300,15.10536,1578.5,1578.4,0.45482267]
[1673978528510,19.65842813,1578.5,1578.4,0.45482267]
[1673978528742,19.77631741,1578.5,1578.4,0.45482267]
[1673978528913,19.65842813,1578.5,1578.4,0.45482267]
[1673978529585,19.77631789,1578.5,1578.4,0.45482267]
[1673978531361,21.19907132,1578.5,1578.4,0.45482267]
[1673978531679,21.19904476,1578.5,1578.4,0.45482267]
[1673978532416,20.25042026,1578.5,1578.4,0.45482267]
[1673978535518,22.14304046,1578.5,1578.4,0.45482267]
[1673978537587,25.73496453,1578.5,1578.4,0.45482267]
[1673978537788,25.73496453,1578.5,1578.2,0.01963962]
[1673978537789,28.26365662,1578.5,1578.2,0.01963962]
[1673978538097,4.27036047,1578.3,1578.2,0.01963962]
[1673978538249,6.33593,1578.3,1578.2,0.95363962]
[1673978538464,6.33593,1578.3,1578.2,4.07026369]
[1673978538465,0.066,1578.3,1578.2,4.07026369]
[1673978538667,0.94891165,1578.4,1578.2,4.07026369]
[1673978538879,4.87339578,1578.5,1578.3,0.40702637]
[1673978539122,4.80739578,1578.5,1578.3,0.40702637]
[1673978539405,19.8448609,1578.6,1578.4,3.11662407]
[1673978539406,1.01491165,1578.6,1578.4,3.11662407]
[1673978539662,1.42336413,1578.7,1578.4,3.11662407]
[1673978539663,0.94891165,1578.7,1578.5,3.11662407]
[1673978539826,2.37227578,1578.7,1578.5,3.11662407]
[1673978540035,2.37227578,1578.7,1578.5,4.06843848]
[1673978541416,0.94891165,1578.6,1578.5,3.11662407]
[1673978542068,2.37227578,1578.7,1578.5,3.11662407]
[1673978544358,2.37227578,1578.7,1578.4,0.066]
[1673978544553,0.97280307,1578.6,1578.4,3.11662407]
[1673978544769,2.3961672,1578.6,1578.4,3.11662407]
[1673978545133,13.64234307,1578.6,1578.4,3.11662407]
[1673978545453,8.7968872,1578.6,1578.4,3.11662407]
[1673978545765,8.7968872,1578.6,1578.3,0.066]
[1673978545766,2.42336413,1578.5,1578.3,0.066]
[1673978546079,19.95513128,1578.4,1578.2,0.01963962]
[1673978546390,20.02113128,1578.4,1578.2,0.01963962]
[1673978546759,23.54634208,1578.4,1578.2,0.01963962]
[1673978546968,0.94857128,1578.3,1578.2,0.01963962]
[1673978547221,19.95636128,1578.3,1578.2,0.01963962]
[1673978547443,20.02236128,1578.3,1578.2,0.01963962]
[1673978550143,19.07379,1578.3,1578.2,0.01963962]
[1673978550393,23.1530069,1578.3,1578.2,0.01963962]
[1673978553315,23.6283069,1578.3,1578.2,0.01963962]
[1673978553665,23.17689832,1578.3,1578.2,0.01963962]
[1673978554668,24.60026245,1578.3,1578.2,0.01963962]
[1673978555145,23.17689832,1578.3,1578.2,0.01963962]
[1673978555665,23.65169117,1578.3,1578.2,0.01963962]
[1673978558239,23.65169117,1578.3,1578.1,0.01929403]
[1673978558240,40.5520361,1578.3,1578.1,0.01929403]
[1673978558486,40.5520361,1578.3,1577.9,0.04436221]
[1673978558487,1.0,1578.1,1577.9,0.04436221]
[1673978558699,28.71634458,1578.1,1577.9,0.04436221]
[1673978558916,0.94776983,1578.0,1577.9,0.04436221]
[1673978559150,11.6199,1578.0,1577.9,0.04436221]
[1673978559315,33.32368787,1578.0,1577.9,0.04436221]
[1673978559533,34.2714577,1578.0,1577.9,0.04436221]
[1673978560623,40.7909622,1578.0,1577.9,0.04436221]
[1673978560833,42.21261695,1578.0,1577.9,0.04436221]
[1673978561058,41.03673506,1578.0,1577.9,0.04436221]
[1673978561203,5.10367351,1577.9,1577.8,0.00029403]
[1673978561424,1.0,1577.8,1577.6,0.04442682]
[1673978561745,32.94384407,1577.8,1577.6,0.04442682]
[1673978561961,1.86589142,1577.7,1577.6,0.04442682]
[1673978562523,20.88091142,1577.7,1577.6,0.04442682]
[1673978562711,25.4400648,1577.7,1577.6,0.04442682]
[1673978563416,25.4400648,1577.7,1577.5,0.04196921]
[1673978563417,1.0,1577.6,1577.5,0.04196921]
[1673978563872,20.01622,1577.6,1577.5,0.04196921]
[1673978564086,32.14632,1577.6,1577.5,0.04196921]
[1673978564896,35.26294407,1577.6,1577.5,0.04196921]
[1673978565106,39.87477696,1577.6,1577.5,0.04196921]
[1673978565990,41.62427696,1577.6,1577.5,0.04196921]
[1673978566160,44.14877696,1577.6,1577.5,0.04196921]
[1673978566376,1.0,1577.5,1577.4,0.04196921]
[1673978566725,24.41704407,1577.5,1577.4,0.04196921]
[1673978566946,37.59946865,1577.5,1577.4,0.04196921]
[1673978567092,41.07506865,1577.5,1577.4,0.04196921]
[1673978567512,44.57506865,1577.5,1577.4,9.21e-06]
[1673978567776,44.57506865,1577.5,1577.1,0.04671353]
[1673978567967,1.0,1577.3,1577.1,0.04671353]
[1673978568305,37.04896,1577.2,1577.1,0.04671353]
[1673978568459,37.04896,1577.2,1576.9,0.0056083]
[1673978568460,1.0,1577.1,1576.9,0.0056083]
[1673978568671,25.3646,1577.0,1576.9,0.0056083]
[1673978568901,25.4306,1577.0,1576.9,0.0056083]
[1673978570088,19.08945,1577.0,1576.9,0.0056083]
[1673978570241,12.7483,1577.0,1576.9,0.0056083]
[1673978570676,12.7483,1577.0,1576.9,0.9396083]
[1673978570888,12.7483,1577.0,1576.9,0.0056083]
[1673978571536,19.08945,1577.0,1576.9,0.0056083]
[1673978572311,21.63486114,1577.0,1576.9,0.0056083]
[1673978572850,6.40715,1577.0,1576.9,0.9396083]
[1673978573050,0.066,1577.0,1576.9,0.9396083]
[1673978573218,24.33483,1577.2,1576.9,5.50123237]
[1673978573432,24.33483,1577.2,1576.9,5.56723237]
[1673978573851,17.99416,1577.2,1577.1,1.445]
[1673978574155,19.08741,1577.2,1576.9,0.0716083]
[1673978574398,19.08741,1577.2,1576.9,0.15596913]
[1673978574566,6.39854641,1577.2,1576.9,4.7085932]
[1673978574773,6.39854641,1577.2,1577.1,1.445]
[1673978575019,0.05820641,1577.2,1577.1,1.445]
[1673978575251,6.33974,1577.4,1577.1,2.89]
[1673978575252,12.73768641,1577.4,1577.1,2.89]
[1673978575494,19.07754641,1577.4,1577.2,1.445]
[1673978576037,19.07754641,1577.4,1577.1,6.00483318]
[1673978576507,19.07754641,1577.4,1577.1,2.88820911]
[1673978576720,19.07754641,1577.4,1577.1,0.44749611]
[1673978576721,19.10143783,1577.4,1577.1,0.44749611]
[1673978577509,0.08209783,1577.4,1577.1,0.44749611]
[1673978577717,0.02389142,1577.4,1577.1,0.44749611]
[1673978578019,6.36363142,1577.4,1577.1,0.44749611]
[1673978578197,12.76161783,1577.4,1577.1,0.44749611]
[1673978579300,19.10150783,1577.4,1577.1,0.44749611]
[1673978580615,19.10150783,1577.4,1577.1,0.63674572]
[1673978581239,19.10150783,1577.4,1577.1,2.08174572]
[1673978587207,19.10150783,1577.4,1577.1,1.89249611]
[1673978588228,19.10150783,1577.4,1577.1,0.44749611]
[1673978588510,25.36136,1577.2,1577.1,0.44749611]
[1673978588654,25.36136,1577.2,1576.9,0.0056083]
[1673978588655,25.41956641,1577.2,1576.9,0.0056083]
[1673978589069,25.3646,1577.0,1576.9,0.0056083]
[1673978589276,28.00683641,1577.0,1576.9,0.0056083]
[1673978590917,21.66568641,1577.0,1576.9,0.0056083]
[1673978591086,19.08165641,1577.0,1576.9,0.0056083]
[1673978591607,0.05820641,1577.0,1576.9,0.0056083]
[1673978591825,24.04177641,1577.1,1576.9,0.0056083]
[1673978592017,6.34115,1577.0,1576.9,0.0056083]
[1673978592229,6.39935641,1577.0,1576.9,0.0056083]
[1673978592683,6.39935641,1577.0,1576.9,4.05623237]
[1673978592684,0.05820641,1577.0,1576.9,4.05623237]
[1673978592894,6.39862641,1577.2,1576.9,6.91492961]
[1673978593111,0.05820641,1577.2,1577.1,1.445]
[1673978593302,12.73860641,1577.3,1577.1,1.445]
[1673978593517,6.34034,1577.2,1577.1,1.445]
[1673978593711,0.05820641,1577.2,1577.1,1.445]
[1673978593919,19.07881641,1577.3,1577.1,1.445]
[1673978594366,0.05820641,1577.3,1577.2,1.445]
[1673978594532,9.696,1577.5,1577.2,4.56162407]
[1673978594533,0.05820641,1577.5,1577.2,4.56162407]
[1673978594743,6.33916,1577.5,1577.3,1.436]
[1673978595009,6.39736641,1577.5,1577.3,1.436]
[1673978595171,0.05820641,1577.5,1577.3,1.436]
[1673978595392,19.07524641,1577.6,1577.3,1.436]
[1673978595913,20.02191473,1577.6,1577.3,1.436]
[1673978596125,20.02191473,1577.6,1577.3,1.89786241]
[1673978596335,6.39716641,1577.6,1577.4,1.445]
[1673978597548,20.02166473,1577.6,1577.3,1.445]
[1673978597689,20.02166473,1577.6,1577.3,4.56162407]
[1673978598052,13.68257473,1577.6,1577.3,4.56162407]
[1673978598262,12.73590641,1577.6,1577.3,4.56162407]
[1673978598639,13.68257473,1577.6,1577.3,4.56162407]
[1673978599195,15.10422948,1577.6,1577.3,4.56162407]
[1673978599362,23.80237235,1577.6,1577.3,4.56162407]
[1673978600045,0.05820641,1577.6,1577.4,1.445]
[1673978600254,9.65869215,1577.7,1577.5,1.445]
[1673978600464,8.76502948,1577.7,1577.6,1.445]
[1673978600709,16.67623461,1577.7,1577.6,1.445]
[1673978601172,15.72956629,1577.7,1577.5,1.436]
[1673978601384,2.52082179,1577.6,1577.5,1.436]
[1673978602285,21.53704179,1577.6,1577.4,1.511]
[1673978602433,23.11201012,1577.6,1577.3,1.436]
[1673978602646,23.11201012,1577.6,1577.3,4.55262407]
[1673978603064,21.44423782,1577.6,1577.3,4.55262407]
[1673978603273,0.94815666,1577.5,1577.3,4.55262407]
[1673978603485,7.28751666,1577.5,1577.3,4.55262407]
[1673978603695,7.34572307,1577.5,1577.3,4.55262407]
[1673978604144,6.39756641,1577.5,1577.3,4.55262407]
[1673978604549,7.34572307,1577.5,1577.3,4.55262407]
[1673978605547,13.68508307,1577.5,1577.3,4.55262407]
[1673978606236,22.16899085,1577.5,1577.2,0.066]
[1673978606444,2.54491873,1577.4,1577.0,31.645]
[1673978606712,2.54491873,1577.4,1577.0,1.505]
[1673978606713,19.02006,1577.3,1577.0,1.505]
[1673978606862,19.02006,1577.3,1577.0,1.439]
[1673978606863,19.07826641,1577.3,1577.0,1.439]
[1673978608123,20.12317003,1577.3,1576.9,4.5166083]
[1673978608292,21.54692669,1577.3,1576.9,1.4506083]
[1673978608608,21.57081811,1577.3,1576.9,1.4506083]
[1673978610392,22.99247286,1577.3,1576.9,1.4506083]
[1673978611226,22.99247286,1577.3,1576.9,0.0056083]
[1673978612503,21.57081811,1577.3,1576.9,4.56723237]
[1673978612810,20.52591449,1577.3,1576.9,5.0231899]
[1673978612983,20.52591449,1577.3,1576.9,5.0891899]
[1673978613199,20.52591449,1577.3,1576.9,4.63323237]
[1673978613547,20.52591449,1577.3,1576.9,4.56723237]
[1673978613862,20.52591449,1577.3,1576.9,10.90874237]
[1673978614024,20.52591449,1577.3,1576.9,10.97474237]
[1673978614236,20.52591449,1577.3,1576.9,4.63323237]
[1673978614474,20.52591449,1577.3,1576.9,4.56723237]
[1673978614475,23.77584975,1577.3,1576.9,4.56723237]
[1673978614906,1.0,1577.2,1576.9,0.0056083]
[1673978615181,19.02225,1577.1,1576.9,0.0056083]
[1673978615428,19.08045641,1577.1,1576.9,0.0056083]
[1673978615597,0.05820641,1577.1,1576.9,0.0056083]
[1673978615806,20.02819307,1577.2,1576.9,0.0056083]
[1673978616068,7.34693307,1577.2,1576.9,10.90875237]
[1673978616389,7.34693307,1577.2,1576.9,10.97475237]
[1673978616560,0.05820641,1577.2,1577.0,4.56162407]
[1673978616777,21.86471141,1577.4,1577.1,4.56162407]
[1673978617137,24.23944632,1577.4,1577.2,1.445]
[1673978617499,22.81779157,1577.4,1577.2,1.445]
[1673978619691,0.53380641,1577.4,1577.3,4.55608338]
[1673978620027,0.94815666,1577.5,1577.3,5.00823241]
[1673978620257,11.55886006,1577.6,1577.4,1.445]
[1673978620654,2.52091844,1577.5,1577.3,4.62762407]
[1673978620871,2.52091844,1577.5,1577.3,4.56162407]
[1673978621099,2.52091844,1577.5,1577.3,3.11662407]
[1673978621425,8.86006844,1577.5,1577.3,3.11662407]
[1673978621646,7.34551307,1577.5,1577.3,3.11662407]
[1673978621795,22.63705396,1577.5,1577.2,1.511]
[1673978622006,2.52103169,1577.4,1577.0,1.511]
[1673978622336,12.68004,1577.3,1576.9,10.8489583]
[1673978622584,20.02642307,1577.3,1576.9,3.18823237]
[1673978622741,20.50202307,1577.3,1576.9,3.12223237]
[1673978622951,23.32835785,1577.3,1576.9,3.12223237]